Cogmind - Beta 15 @@@ ROGUE MODE // 2025.09.18 @ 16:12:11 Player: BlobtheGreat Result: Destroyed by Vortex Trap Performance ------------- Evolutions (0) 0 Regions Visited (4) 800 Robots Destroyed (45) 225 Value Destroyed (1115) 1115 Prototype IDs (20) 400 Alien Tech Used (0) 0 Bonus (2337) 2337 TOTAL SCORE: 4877 Bonus ------- Follower Combat Kills 84 Delivered SUBCON Basin 2000 Registered with UFD 300 Friendly Fire -47 Cogmind --------- Core Integrity 0/250 Matter 292/300 Energy 99/100 System Corruption 2% Temperature Cool (0) Movement Core (700) Ox13 Location -9/Scraptown Parts ------- > --- POWER (1) -------- (None) > --- PROPULSION (2) --- (None) > --- UTILITY (2) ------ High-capacity Storage Unit > --- WEAPON (2) ------- (None) > --- INVENTORY (20) --- Subdweller Power Source Light Treads Light Treads Subdweller Monowheel VTOL Module Seismic Detector Light Armor Plating Light Armor Plating Tower Shield Tech Extrapolator Scrapoid Pod Subdweller Beam Cannon Improved Light Cannon Rocket Launcher Dirty Datajack (20) Multitool DRS Beacon (Ready) Peak State ------------ > --- POWER ------------ (None) > --- PROPULSION ------- Light Treads Subdweller Monowheel > --- UTILITY ---------- High-capacity Storage Unit V3-11A's Pendant > --- WEAPON ----------- Subdweller Beam Cannon Improved Light Cannon > --- INVENTORY -------- Seismic Detector Tower Shield Dirty Datajack Multitool SUBCON Basin [Rating: 31] Favorites ----------- Power Light Ion Engine Engine Light Ion Engine Propulsion Light Treads Treads Light Treads Wheel Subdweller Monowheel Utility High-capacity Storage Unit Device V3-11A's Pendant Storage High-capacity Storage Unit Protection Core Shielding Weapon Improved Light Cannon Energy Gun Beam Rifle Energy Cannon Subdweller Beam Cannon Ballistic Cannon Improved Light Cannon Build | -11 -10 -10 -9 -9 ------- Run | Yrd Mat Sub Rec Scr Slots Evolved . | . . . . . Power . | . . . . . Propulsion . | . . . . . Utility . | . . . . . Weapon . | . . . . . Parts Attached 28 | 7 12 6 3 . Power 4 | 1 1 1 1 . Engine 4 | 1 1 1 1 . Core . | . . . . . Reactor . | . . . . . Propulsion 7 | 2 2 2 1 . Treads 5 | 2 1 1 1 . Leg . | . . . . . Wheel 2 | . 1 1 . . Hover . | . . . . . Flight . | . . . . . Utility 8 | 2 4 1 1 . Device 3 | 1 1 1 . . Storage 2 | 1 1 . . . Processor . | . . . . . Hackware . | . . . . . Protection 3 | . 2 . 1 . Artifact . | . . . . . Weapon 9 | 2 5 2 . . Energy Gun 5 | 2 3 . . . Energy Cannon 1 | . . 1 . . Ballistic Gun . | . . . . . Ballistic Cannon 3 | . 2 1 . . Launcher . | . . . . . Special Weapon . | . . . . . Impact Weapon . | . . . . . Slashing Weapon . | . . . . . Piercing Weapon . | . . . . . Special Melee Weapon . | . . . . . Unidentified Prototypes 1 | . . 1 . . Parts Lost 8 | . 3 5 . . Power 3 | . 1 2 . . Propulsion 3 | . 1 2 . . Utility 1 | . 1 . . . Weapon 1 | . . 1 . . Highest Loss Streak 1 | . 1 1 . . To Critical Strikes . | . . . . . Average Backups 14 | 4 11 17 8 11 Power . | . . . . 1 Propulsion 3 | 2 4 4 1 2 Utility 5 | . 4 6 4 5 Weapon 3 | 1 2 5 . . Tool/Special . | . . . . . Unused Backups 24 | 1 2 11 . 10 Power . | . . . . . Propulsion 6 | . . 4 . 2 Utility 9 | . 2 3 . 4 Weapon 6 | 1 . 4 . 1 Tool/Special 3 | . . . . 3 Average Slot Usage (%) 84 | . 98 86 87 69 Engine 3 | . 13 2 1 . Treads 24 | . 22 26 21 25 Wheel 2 | . 4 1 6 . Device 6 | . 2 9 6 . Storage 14 | . 14 14 14 14 Protection 5 | . 11 4 7 3 Energy Gun 3 | . 27 . . . Energy Cannon 6 | . . 4 14 12 Ballistic Cannon 16 | . . 23 14 12 Peak Build Rating 31 | 7 11 31 31 14 Average Rating 12 | 6 8 12 14 11 On Entrance 12 | . 7 10 31 12 Naked Turns . | . . . . . Heaviest Build 58 | 13 52 54 58 55 Greatest Support 40 | 40 40 40 40 40 Greatest Overweight (x) 13 | . 5 2 2 13 Average Overweight (x) 1 | . 2 1 1 1 Largest Inventory Capacity 20 | 8 20 20 20 20 Average Capacity 19 | 7 18 20 20 20 Most Carried 20 | 7 16 20 20 20 Average Carried 15 | 4 11 18 10 12 Final Capacity 20 | 8 20 20 20 20 Final Carried 20 | 7 15 20 11 19 Class Distribution -------------------- 100% | Mutant Dominant Class ---------------- Mutant | -10/Materials Mutant | -10/Subcaves Mutant | -9/Recycling Mutant | -9/Scraptown Resources | -11 -10 -10 -9 -9 ----------- Run | Yrd Mat Sub Rec Scr Matter Collected 1056 | 267 109 600 70 10 Remotely . | . . . . . Salvage Created 1396 | 184 646 240 326 . Parts 91 | 17 38 22 14 . Haulers Intercepted 2 | . 2 . . . Recyclers Shooed 2 | . . . 2 . Parts Field Recycled . | . . . . . Retrieved Matter . | . . . . . Parts Self-Destructed 10 | . . 10 . . Prevented . | . . . . . Kills | -11 -10 -10 -9 -9 ------- Run | Yrd Mat Sub Rec Scr Combat Hostiles Destroyed 26 | . 13 11 2 . Guns 13 | . 13 . . . Cannons 13 | . . 11 2 . Classes Destroyed 12 | 3 5 4 . . Worker 1 | 1 . . . . Tunneler 6 | 6 . . . . Hauler 2 | . 2 . . . Recycler 5 | 1 . . 4 . Operator 1 | . 1 . . . Turret 1 | . . 1 . . Watcher 3 | . 3 . . . Swarmer 3 | . 3 . . . Grunt 10 | . 10 . . . Sentry 3 | . . 1 2 . Artisan 1 | . . 1 . . Subdweller 10 | . . 10 . . Best Kill Streak 4 | 3 4 3 3 . Combat Bots Only 3 | . 3 3 1 . Max Kills in Single Turn 2 | 1 2 1 2 . Gunslinging 1 | . 1 . . . Exploded . | . . . . . Melee . | . . . . . Uniques/NPCs Destroyed . | . . . . . Combat | -11 -10 -10 -9 -9 -------- Run | Yrd Mat Sub Rec Scr Hostile Shots Fired 123 | . 61 57 5 . Missed 35 | . 12 20 3 . Hits 88 | . 49 37 2 . Projectile 88 | . 49 37 2 . Critical Strikes 3 | . 2 1 . . Damage Taken 1508 | . 614 804 37 53 Core 262 | . 97 113 . 52 Absorbed by Shields . | . . . . . Redirected to Shielding 21 | . 6 15 . . Core Remaining (%) 100 | 100 . . . . Volleys Fired 129 | 15 46 58 10 . Largest 2 | 2 2 2 2 . Hottest 113 | 90 112 113 113 . Shots Fired 218 | 17 89 92 20 . Gun 106 | 17 89 . . . Cannon 112 | . . 92 20 . Launcher . | . . . . . Special . | . . . . . Kinetic 88 | . . 78 10 . Thermal 128 | 15 89 14 10 . Explosive . | . . . . . Electromagnetic 2 | 2 . . . . Robot Hit Streak 19 | 8 13 19 6 . Robot Miss Streak 3 | 1 3 2 2 . Penetration Max . | . . . . . Secondary Targets 1 | . 1 . . . Max Gunslinging Chain 1 | . 1 . . . Shots Hit Robots 131 | 13 51 56 11 . Core Hits 67 | 10 28 23 6 . Critical Kills . | . . . . . Critical Parts Destroyed . | . . . . . Critical Strikes 4 | 1 2 1 . . Burn 3 | 1 2 . . . Blast 1 | . . 1 . . Melee Attacks . | . . . . . Impact . | . . . . . Slashing . | . . . . . Piercing . | . . . . . Sneak Attacks . | . . . . . Combat Hostiles . | . . . . . Follow-up Attacks . | . . . . . Damage Inflicted 2413 | 201 668 1193 350 1 Guns 835 | 168 667 . . . Cannons 1509 | . . 1193 316 . Explosions 32 | 32 . . . . Melee . | . . . . . Ramming 37 | 1 1 . 34 1 Kinetic 1242 | . . 1139 103 . Thermal 1106 | 172 667 54 213 . Explosive . | . . . . . Electromagnetic 28 | 28 . . . . Impact . | . . . . . Slashing . | . . . . . Piercing . | . . . . . Highest Corruption 2 | . . . . 2 Average Corruption 2 | . . . . 2 Corruption Purged . | . . . . . Corruption Blocked . | . . . . . Effects 2 | . . . . 2 Message Errors 1 | . . . . 1 Matter Fused 1 | . . . . 1 Overload Shots . | . . . . . Overflow Damage . | . . . . . Projectiles . | . . . . . Explosions . | . . . . . Melee . | . . . . . Knockbacks 9 | . . 8 1 . Impact 1 | . . . 1 . Kinetic 7 | . . 7 . . Secondary 1 | . . 1 . . Self-Inflicted Damage 12 | . . . 11 1 Shots . | . . . . . Rammed 5 | 1 2 . 2 . Targets Rammed 5 | 1 2 . 2 . Kicked . | . . . . . Crushed . | . . . . . Highest Temperature 322 | 60 322 4 189 . Average Temperature 86 | 23 99 4 74 . Received Heat Transfer 399 | . 276 114 9 . Effects 1 | . 1 . . . Energy Bleed 1 | . 1 . . . Siege Activations . | . . . . . Martial Activations . | . . . . . Shielding Activations . | . . . . . Robots Disrupted . | . . . . . Combat Hostiles . | . . . . . Robots Corrupted . | . . . . . Combat Hostiles . | . . . . . Parts Fried . | . . . . . Impact Corruptions . | . . . . . Robots Melted . | . . . . . Combat Hostiles . | . . . . . Parts Melted 6 | 3 3 . . . Heat Transferred 2757 | 531 1856 74 296 . Parts Sabotaged . | . . . . . Parts Stolen . | . . . . . Parts Stripped . | . . . . . Power Chain Reactions 1 | 1 . . . . Alert | -11 -10 -10 -9 -9 ------- Run | Yrd Mat Sub Rec Scr Maximum Alert Level . | . . . . . Low Security (%) 100 | 100 100 . 100 . Level 1 . | . . . . . Level 2 . | . . . . . Level 3 . | . . . . . Level 4 . | . . . . . Level 5 . | . . . . . High Security . | . . . . . Max Security . | . . . . . Peak Influence 85 | 10 85 . 74 . Initial 66 | . . . 66 . Average 24 | 1 29 . 22 . Influence Increases 1061 | 40 441 298 282 . Destroy 0b10 Robot/C 440 | . 260 120 60 . Destroy 0b10 Robot/NC 90 | 40 30 . 20 . Destroy Leader 60 | . 60 . . . Allied During Kill 14 | . . 13 1 . Successful Hack 63 | . 45 . 18 . Select Force Hacks 180 | . . . 180 . Destroy Structure 4 | . 1 . 3 . Lose Combat Pursuer 210 | . 45 165 . . Influence Decreases 1061 | 40 441 159 421 . Entered New Map 73 | . . . 73 . Time Decay 868 | 40 421 79 328 . Lost Part 40 | . 20 20 . . Lost Ally 80 | . . 60 20 . Squads Dispatched 2 | . 2 . . . Investigation 1 | . 1 . . . Extermination . | . . . . . Reinforcement 1 | . 1 . . . Assault . | . . . . . Garrison . | . . . . . Intercept . | . . . . . Searches Triggered . | . . . . . Construction Impeded . | . . . . . Haulers Reinforced . | . . . . . Active Scanning Responses . | . . . . . Cargo Convoy Interrupts . | . . . . . Stealth | -11 -10 -10 -9 -9 --------- Run | Yrd Mat Sub Rec Scr Distress Signals . | . . . . . Communications Jammed . | . . . . . Distress Signals . | . . . . . Times Spotted 49 | . 24 23 2 . Peak Tracking Total 4 | . 4 2 1 . Tactical Retreats 6 | . 2 4 . . Traps | -11 -10 -10 -9 -9 ------- Run | Yrd Mat Sub Rec Scr Traps Triggered 5 | . 2 2 . 1 Indirectly . | . . . . . Trap Hack Attempts . | . . . . . Triggered . | . . . . . Disarmed . | . . . . . Reprogrammed . | . . . . . Reused . | . . . . . Traps Extracted . | . . . . . Installed 1 | . . . . 1 Triggered . | . . . . . Most Traps Carried 1 | . . 1 . 1 Machines | -11 -10 -10 -9 -9 ---------- Run | Yrd Mat Sub Rec Scr Machines Disabled 3 | . . 3 . . Max in Single Turn 1 | . . 1 . . Machines Repaired . | . . . . . Machines Dismantled . | . . . . . Machines Sabotaged . | . . . . . Overloaded Fab Kills . | . . . . . Hacking | -11 -10 -10 -9 -9 --------- Run | Yrd Mat Sub Rec Scr Machines Accessed 24 | . 8 4 10 2 Terminals 11 | . 7 . 4 . Fabricators . | . . . . . Repair Stations . | . . . . . Recycling Units 7 | . 1 . 6 . Scanalyzers . | . . . . . Garrison Access . | . . . . . Total Hacks 67 | . 28 15 19 5 Successful 45 | . 14 15 11 5 Failed 22 | . 14 . 8 . Catastrophic 1 | . 1 . . . Database Lockouts . | . . . . . Manual 38 | . 19 . 19 . Terminals 35 | . 25 . 10 . Fabricators . | . . . . . Repair Stations . | . . . . . Recycling Units 12 | . 3 . 9 . Scanalyzers . | . . . . . Garrison Access . | . . . . . Terminal Hacks 26 | . 5 15 1 5 Record 16 | . . 12 . 4 Robot Schematic 1 | . . . 1 . Robot Analysis 2 | . 2 . . . Open Door 1 | . . 1 . . Branch Access Points 1 | . 1 . . . Recall Reinforcements 1 | . 1 . . . Hauler Manifests 1 | . 1 . . . Proto ID Catalog 2 | . . 1 . 1 Release Object 1 | . . 1 . . Fabricator Hacks . | . . . . . Repair Station Hacks . | . . . . . Recycling Unit Hacks 1 | . . . 1 . Retrieve Components 1 | . . . 1 . Scanalyzer . | . . . . . Garrison Access Hacks . | . . . . . Unauthorized Hacks 18 | . 9 . 9 . Terminals 12 | . 9 . 3 . Botnet 4 | . 3 . 1 . Skim 8 | . 6 . 2 . Fabricators . | . . . . . Repair Stations . | . . . . . Recycling Units 6 | . . . 6 . Tunnel 6 | . . . 6 . Scanalyzers . | . . . . . Garrison Access . | . . . . . Data Cores Recovered 1 | . 1 . . . Used . | . . . . . Hacking Detections 13 | . 8 . 5 . Full Trace Events 1 | . 1 . . . Feedback Events . | . . . . . Feedback Blocked . | . . . . . Robot Schematics Acquired 1 | . . . 1 . Robots Built . | . . . . . Authchips . | . . . . . Time . | . . . . . Total Robot Build Rating . | . . . . . Part Schematics Acquired . | . . . . . Parts Built . | . . . . . Authchips . | . . . . . Time . | . . . . . Total Part Build Rating . | . . . . . Parts Repaired . | . . . . . Time . | . . . . . Parts Recycled . | . . . . . Recycled Matter . | . . . . . Retrieved Matter . | . . . . . Retrieved Components 3 | . . . 3 . Parts Scanalyzed . | . . . . . Part Schematics Acquired . | . . . . . Parts Damaged . | . . . . . Bothacking | -11 -10 -10 -9 -9 ------------ Run | Yrd Mat Sub Rec Scr Used RIF Installer . | . . . . . Robots Hacked . | . . . . . Non-combat . | . . . . . Combat . | . . . . . Robot Hacks Applied . | . . . . . Relay Couplers Released . | . . . . . Fabnet Peak Effective % . | . . . . . Robots Rewired . | . . . . . Allies Hacked . | . . . . . Hacks Repelled . | . . . . . Allies | -11 -10 -10 -9 -9 -------- Run | Yrd Mat Sub Rec Scr Total Allies 7 | . . 7 . . Largest Group 3 | . . 3 2 . Highest-Rated Group 57 | . . 57 38 . Highest-Rated Ally 19 | . . 19 19 . Total Orders . | . . . . . Ally Attacks 31 | . . 27 4 . Total Damage 593 | . . 498 95 . Kills 6 | . . 5 1 . Allies Corrupted . | . . . . . Allies Melted . | . . . . . Intel | -11 -10 -10 -9 -9 ------- Run | Yrd Mat Sub Rec Scr Active Infowar (turns) 518 | 132 325 61 . . Seismic 518 | 132 325 61 . . Robot Analysis Total 2 | . 2 . . . Derelict Logs Recovered 5 | . . 3 . 2 Drone Launches . | . . . . . Drone Recoveries . | . . . . . Exploration | -11 -10 -10 -9 -9 ------------- Run | Yrd Mat Sub Rec Scr Turns Passed 11680 | 224 1616 5728 1245 2867 Spaces Moved 5045 | 110 744 2393 681 1117 Core 44 | 5 . . . 39 Treads 3757 | 105 446 1872 256 1078 Legs . | . . . . . Wheels 1244 | . 298 521 425 . Hover . | . . . . . Flight . | . . . . . Fastest Speed 50 | 50 140 130 130 160 Average Speed 213 | 155 191 216 171 255 Slowest Speed 700 | 160 320 320 240 700 Overloaded Moves . | . . . . . Propulsion Burnouts . | . . . . . Robots Hopped . | . . . . . Potential Cave-ins . | . . . . . Cave-ins Triggered . | . . . . . Exploration Rate (%) 73 | 5 90 95 94 82 Regions Visited 4 Branch Regions 3 Pre-discovered Areas 10 | . . 2 6 2 Known Exits Taken 1 | . 1 . . . Unknown Exits Taken 3 | 1 . 1 1 . Scrap Searched 6 | . . 4 . 2 Spaces Dug . | . . . . . Terrain Destroyed 10 | 5 . 2 3 . Melee . | . . . . . Projectile 5 | . . 2 3 . AOE 5 | 5 . . . . Terrain Rammed 1 | . . . . 1 Walls Destroyed . | . . . . . Machines Disabled . | . . . . . Actions | -11 -10 -10 -9 -9 --------- Run | Yrd Mat Sub Rec Scr Total 5723 | 144 845 2863 739 1132 Wait 423 | . 17 374 31 1 Move 5041 | 109 743 2392 680 1117 Hop . | . . . . . Pick Up 48 | 10 14 11 8 5 Fast Attach 10 | 6 2 1 1 . Attach 8 | 1 3 4 . . Detach 8 | . 2 1 1 4 Swap 16 | . 9 4 2 1 Drop 33 | 2 7 18 4 2 Fire 129 | 15 46 58 10 . Melee . | . . . . . Ram 2 | . . . 1 1 Kick . | . . . . . Crush 4 | 1 2 . 1 . Escape Stasis . | . . . . . Rewire . | . . . . . Trap 1 | . . . . 1 Miscellaneous . | . . . . . Route ------- -11/Scrapyard -10/Materials (discovered 5 exits: *Mat x3 / *Min / *Sub) -10/Subcaves (discovered 3 exits: *Mat x2 / *Rec) -9/Recycling (discovered 2 exits: [*Fac] / *Scr) -9/Scraptown (discovered 1 exit: [*Fac]) History --------- Turn | Location | Event 5 | -11/Scrapyard | Discovered new exit (range 14) 225 | -11/Scrapyard | Entered Materials 303 | -10/Materials | Build established: Mutant 400 | -10/Materials | Discovered new exit (range 3) 1023 | -10/Materials | Discovered new exit (range 10) 1178 | -10/Materials | Discovered new exit (range 15) 1191 | -10/Materials | Identified exit to Mines 1248 | -10/Materials | Identified exit to Subcaves 1321 | -10/Materials | Loaded intel: 7 trap records 1386 | -10/Materials | Learned location of 2 exits from Mines 1490 | -10/Materials | Identified exit to Materials 1841 | -10/Materials | Entered Subcaves 1842 | -10/Subcaves | Identified exit to Materials 2002 | -10/Subcaves | Visited Clippyterm 2009 | -10/Subcaves | Learned Research machine intel 2181 | -10/Subcaves | Core integrity fell below 50% 2682 | -10/Subcaves | Disturbed a concealed Subdweller 3363 | -10/Subcaves | Ambushed by Subdwellers from Twisted Machinery 3645 | -10/Subcaves | Visited triangular shrine 3660 | -10/Subcaves | Found Prototype Device 3661 | -10/Subcaves | Identified V3-11A's Pendant 3666 | -10/Subcaves | Befriended Subdweller 3932 | -10/Subcaves | Approached by friendly Subdweller 4457 | -10/Subcaves | A swath of the cavern ceiling suddenly collapsed 4492 | -10/Subcaves | Curiously followed by a Cobbler waking with a query about "LVR3C" 4607 | -10/Subcaves | Approached by friendly Subdweller 4641 | -10/Subcaves | Befriended Subdweller 4646 | -10/Subcaves | Befriended Subdweller 4662 | -10/Subcaves | Discovered new exit (range 14) 4665 | -10/Subcaves | A swath of the cavern ceiling suddenly collapsed 4719 | -10/Subcaves | Lost 3 allies 4931 | -10/Subcaves | Befriended Subdweller 5058 | -10/Subcaves | Learned location of Storage (-9) 5098 | -10/Subcaves | Learned location of Zion (-6) 5098 | -10/Subcaves | Met a Zionite searching for "candidates" 5410 | -10/Subcaves | Disturbed a concealed Subdweller 5416 | -10/Subcaves | Befriended Subdweller 6844 | -10/Subcaves | Core integrity fell below 20% 6928 | -10/Subcaves | Visited 4L-MR0's lab 6961 | -10/Subcaves | Found Tower Shield 7401 | -10/Subcaves | Found SUBCON Basin 7569 | -10/Subcaves | Entered Recycling 7569 | -9/Recycling | Accompanied by 2 allies 7632 | -9/Recycling | Scanned before Scraplab entrance 7650 | -9/Recycling | Entered Scraplab 7717 | -9/Recycling | Discovered new exit (range 3) 8044 | -9/Recycling | Discovered new exit (range 16) 8814 | -9/Recycling | Entered Scraptown 9160 | -9/Scraptown | Discovered new exit (range 13) 9282 | -9/Scraptown | Scanned Subdweller tech in exchange for log data 9292 | -9/Scraptown | Learned Factory stockpile data 9618 | -9/Scraptown | Delivered V3-11A's Pendant to T0-NE2 in exchange for information 9687 | -9/Scraptown | Visited Cyclists 9757 | -9/Scraptown | Visited Shadow of the Wyrm 9802 | -9/Scraptown | Visited SPCMW 9846 | -9/Scraptown | Visited Artisan Demo Area 9913 | -9/Scraptown | Visited Junk Repository 9975 | -9/Scraptown | Visited Assassins FH 10390 | -9/Scraptown | Visited UFD Registry 10390 | -9/Scraptown | Registered with UFD as "Fleximachine" 10474 | -9/Scraptown | Visited Scrap Suit Storage 10512 | -9/Scraptown | Visited LU-1G1's Boring Crew 10611 | -9/Scraptown | Visited Scrapoid Pod Storage 10647 | -9/Scraptown | Visited Curators Association 10740 | -9/Scraptown | Visited Research Penetration Think Tank 10791 | -9/Scraptown | Visited Science Guys 10865 | -9/Scraptown | Visited Chapter 10 10932 | -9/Scraptown | Visited Abandonware Association 10956 | -9/Scraptown | Learned abandonware demo "OVRCLOCK.EXE" 10966 | -9/Scraptown | Learned abandonware demo "SHUTEYE.EXE" 11021 | -9/Scraptown | Visited Derelict Rescue Squad 11036 | -9/Scraptown | Found DRS Beacon 11279 | -9/Scraptown | Found Scrapoid Pod 11534 | -9/Scraptown | Warned about trapping Scraptown 11681 | -9/Scraptown | Destroyed by Vortex Trap Last Messages --------------- spread the help around. 11036_ Acquired DRS Beacon. 11279_ Acquired Scrapoid Pod. 11292_ LF-W9N(c): "Come one, come all! See for yourself a fine selection of the many wondrous pieces in our collection!" 11461_ Slammed into Wall. 11461_ Destabilizing: System corrupted (+2). 11502_ P%PB8S BSIT5%US/JDHFTCS 11510_ Dropped Lgt. Treads. 11510_ Acquired Vortex Trap. 11527_ System corrupted: Matter fused (-8). 11532_ Dropped Vortex Trap. 11533_ Installed Vortex Trap. 11534_ ANNOUNCEMENT: Tracking potentially hostile trap installation. 11681_ System corruption misinterpreted. 11681_ Triggered Vortex Trap. 11681_ A wave of accelerated entropy washes over the area. Map ----- +----------------------------------------------------+ | ##" "#?# ##"" ""##?????????????????????? | | ##" "#?# #" "#?????????????????????? | | ####### ###?# ## ##########?????????????????????? | | ####### ##### ## ##???###???????????????????????? | | """"""" """"" "" "#??? ???"????????????????????? | | "#?? """ "????????????????????? | | "#?? "????????????????????? | | "#?" ?????????????????????? | | "##" " """????????????????????? | | " #???????????????????? | | """"""""""""" "##" """ ""????????????????????? | | """"""""""""" "#?" ???????????????????????? | | ###########"" "#?? ""??????????????????????? | | ??????????#"" "##########????????????????????? | | ??????????#"" "##"""""""#????????????????????? | | ??????????#"" "## """"""#????????????????????? | | ????????###"" "## ""#????????????????????? | | ???###### #"" "## ""#????????????????????? | | ?? ""#????????????????????? | | ?? "## "#????????????????????? | | ???###### #"" "## ""#????????????????????? | | ????????###"" "## " """"#????????????????????? | | ??????????#"" "##############????????????????? | | ??????????#"" "## " = """"""#????????????????? | | ??????????#"" "## "" """"""#????????????????? | | ###########"" "## @ "/"""#????????????????? | | """"""""""""" "## c """ "#????????????????? | | """"""""""""" ""c X"#????????????????? | | "## "" "#????????????????? | | "## c""#????????????????? | | "## "c ""#????????????????? | | ## "" """#????????????????? | | # """""c"""#????????????????? | | """"""""" """""" ##" """""""""#????????????????? | | ######### ###### ##############????????????????? | | ## # #?????????????????????????????? | | ##" ### #?????????????????????????????? | | " ##"" ## #?????????????????????????????? | | " ##"""" ## #?????????????????????????????? | | " ##"" " ## #?????????????????????????????? | | " ##"""" #? #?????????????????????????????? | | ##"" #? ?????????????????????????????? | | " ##"" #? ?????????????????????????????? | | """## " ##? ?????????????????????????????? | | #####"""""""""??? ???????????????????????????????? | | ????###########??????????????????????????????????? | | ?????????????????????????????????????????????????? | | ?????????????????????????????????????????????????? | | ?????????????????????????????????????????????????? | | ?????????????????????????????????????????????????? | +----------------------------------------------------+ Best States ------------- Heat Dissipation 25 Energy Generation 15 Energy Capacity 200 Matter Stores 300 Matter Capacity 300 Sight Range 16 Terrain Scan Density 10 Armor Coverage 150 Core Shielding 20 Evasion (%) 40 Recoil Reduction 2 Item Schematics ----------------- None Robot Schematics ------------------ G-34 Mercenary | -9/Recycling | Hacked Fabricated ------------ Nothing Repaired ---------- Nothing Alien Tech Used ----------------- None Achievements -------------- None Challenges ------------ None Game ------ Seed PartitionScrapThrower Manual? 0 Play Time 00:33:32 Cumulative 145.3 hours Start 2025.09.18 @ 15:40:05 End 2025.09.18 @ 16:12:11 Sessions 1 Manual Loads 0 Difficulty Rogue Special Mode None Game No. 125 Rogue 125 Adventurer 0 Explorer 0 Win Type - Total 4 Types 3/0/1/0/0/0/0/0/0/0 Lore% 72 Gallery% 63 Achievement% 59 Wizard Run 0 Options --------- Layout 1 ASCII 0 Keyboard 1 Movement Arrows Keybinds 0 Fullscreen 1 Font 24/Smallcaps Map View 50x40 Zoom Use 0% Tactical HUD 1 Map Filters NONE Filters NONE Steam 1 RUN: 169f9a26-3967-4a8c-b28b-b37d33d78f3c